[Event "SM-blixten 2025"]
[Site "Uppsala, Sweden"]
[Date "2025.07.03"]
[Round "7.8"]
[White "Tadjerbashi, Amir"]
[Black "Ljung, Harald"]
[Result "1/2-1/2"]
[TimeControl "3 min + 2 sec increment starting from move 1"]
[WhiteElo "2235"]
[BlackElo "2194"]

1. e4 {[%clk 00:03:02]} {[%emt 00:00:02]} c5 {[%clk 00:03:04]} 2. Nf3 {[%clk
00:03:03]} {[%emt 00:00:01]} g6 {[%clk 00:03:05]} 3. d4 {[%clk 00:03:03]}
{[%emt 00:00:02]} cxd4 {[%clk 00:03:06]} 4. Nxd4 {[%clk 00:03:04]} {[%emt
00:00:02]} Bg7 {[%clk 00:03:07]} 5. Nc3 {[%clk 00:03:04]} {[%emt 00:00:02]} Nc6
{[%clk 00:03:08]} {[%emt 00:00:01]} 6. Nde2 {[%clk 00:03:05]} {[%emt 00:00:01]}
Nf6 {[%clk 00:03:08]} {[%emt 00:00:02]} 7. g3 {[%clk 00:03:06]} {[%emt
00:00:01]} O-O {[%clk 00:03:09]} {[%emt 00:00:02]} 8. Bg2 {[%clk 00:03:07]}
{[%emt 00:00:01]} d6 {[%clk 00:03:09]} {[%emt 00:00:02]} 9. O-O {[%clk
00:03:07]} {[%emt 00:00:01]} Bd7 {[%clk 00:03:06]} {[%emt 00:00:06]} 10. h3
{[%clk 00:03:07]} {[%emt 00:00:01]} a6 {[%clk 00:03:03]} {[%emt 00:00:06]} 11.
a4 {[%clk 00:03:05]} {[%emt 00:00:03]} Rc8 {[%clk 00:03:03]} {[%emt 00:00:02]}
12. Re1 {[%clk 00:03:04]} {[%emt 00:00:03]} h5 {[%clk 00:02:47]} {[%emt
00:00:18]} 13. Be3 {[%clk 00:02:56]} {[%emt 00:00:11]} Ne5 {[%clk 00:02:47]}
{[%emt 00:00:02]} 14. b3 {[%clk 00:02:56]} {[%emt 00:00:03]} Kh7 {[%clk
00:02:44]} {[%emt 00:00:04]} 15. Rc1 {[%clk 00:02:51]} {[%emt 00:00:07]} Qa5
{[%clk 00:02:43]} {[%emt 00:00:02]} 16. Bd4 {[%clk 00:02:23]} {[%emt 00:00:30]}
Nc6 {[%clk 00:02:41]} {[%emt 00:00:05]} 17. Bxf6 {[%clk 00:02:23]} Bxf6 {[%clk
00:02:39]} {[%emt 00:00:05]} 18. Nd5 {[%clk 00:02:24]} {[%emt 00:00:01]} Bg7
{[%clk 00:02:39]} {[%emt 00:00:01]} 19. c3 {[%clk 00:02:13]} {[%emt 00:00:14]}
Qc5 {[%clk 00:02:13]} {[%emt 00:00:29]} 20. b4 {[%clk 00:02:08]} {[%emt
00:00:06]} Qa7 {[%clk 00:02:13]} {[%emt 00:00:01]} 21. b5 {[%clk 00:02:05]}
{[%emt 00:00:06]} axb5 {[%clk 00:02:07]} {[%emt 00:00:08]} 22. axb5 {[%clk
00:02:06]} {[%emt 00:00:01]} Ne5 {[%clk 00:02:08]} {[%emt 00:00:01]} 23. b6
{[%clk 00:01:47]} {[%emt 00:00:22]} Qa5 {[%clk 00:01:51]} {[%emt 00:00:18]} 24.
Nxe7 {[%clk 00:01:38]} {[%emt 00:00:11]} Qxb6 {[%clk 00:01:51]} {[%emt
00:00:02]} 25. Nxc8 {[%clk 00:01:38]} {[%emt 00:00:01]} Rxc8 {[%clk 00:01:52]}
{[%emt 00:00:01]} 26. Nd4 {[%clk 00:01:33]} {[%emt 00:00:05]} Qb2 {[%clk
00:01:49]} {[%emt 00:00:07]} 27. Re2 {[%clk 00:01:16]} {[%emt 00:00:19]} Qa3
{[%clk 00:01:49]} {[%emt 00:00:01]} 28. f4 {[%clk 00:00:35]} {[%emt 00:00:44]}
Nc4 {[%clk 00:01:51]} {[%emt 00:00:01]} 29. Kh2 {[%clk 00:00:30]} {[%emt
00:00:06]} Ba4 {[%clk 00:01:51]} {[%emt 00:00:02]} 30. Qe1 {[%clk 00:00:28]}
{[%emt 00:00:03]} Bd7 {[%clk 00:01:43]} {[%emt 00:00:11]} 31. Ra1 {[%clk
00:00:29]} {[%emt 00:00:02]} Qc5 {[%clk 00:01:43]} {[%emt 00:00:01]} 32. Rb1
{[%clk 00:00:27]} {[%emt 00:00:03]} b5 {[%clk 00:01:44]} {[%emt 00:00:02]} 33.
Rc1 {[%clk 00:00:27]} {[%emt 00:00:03]} Nb6 {[%clk 00:01:41]} {[%emt 00:00:04]}
34. Rd2 {[%clk 00:00:22]} {[%emt 00:00:07]} Na4 {[%clk 00:01:42]} {[%emt
00:00:01]} 35. Ne2 {[%clk 00:00:19]} {[%emt 00:00:05]} Qe3 {[%clk 00:01:37]}
{[%emt 00:00:06]} 36. Rxd6 {[%clk 00:00:15]} {[%emt 00:00:07]} Be6 {[%clk
00:01:34]} {[%emt 00:00:05]} 37. Nd4 {[%clk 00:00:16]} Qxe1 {[%clk 00:01:28]}
{[%emt 00:00:08]} 38. Rxe1 {[%clk 00:00:17]} {[%emt 00:00:01]} Bc4 {[%clk
00:01:16]} {[%emt 00:00:14]} 39. e5 {[%clk 00:00:16]} {[%emt 00:00:03]} Nxc3
{[%clk 00:01:17]} 40. Rd7 {[%clk 00:00:17]} {[%emt 00:00:01]} b4 {[%clk
00:01:09]} {[%emt 00:00:10]} 41. Rc1 {[%clk 00:00:17]} {[%emt 00:00:02]} Na2
{[%clk 00:01:08]} {[%emt 00:00:02]} 42. Rb1 {[%clk 00:00:16]} {[%emt 00:00:04]}
Bd3 {[%clk 00:00:55]} {[%emt 00:00:14]} 43. Rb2 {[%clk 00:00:15]} {[%emt
00:00:03]} h4 {[%clk 00:00:52]} {[%emt 00:00:05]} 44. Rxa2 {[%clk 00:00:14]}
{[%emt 00:00:03]} hxg3+ {[%clk 00:00:51]} {[%emt 00:00:03]} 45. Kxg3 {[%clk
00:00:15]} Rc3 {[%clk 00:00:52]} {[%emt 00:00:02]} 46. Nf3 {[%clk 00:00:15]}
{[%emt 00:00:02]} Be4 {[%clk 00:00:53]} {[%emt 00:00:01]} 47. Rb2 {[%clk
00:00:16]} {[%emt 00:00:02]} b3 {[%clk 00:00:54]} 48. Rxf7 {[%clk 00:00:15]}
{[%emt 00:00:03]} Kg8 {[%clk 00:00:55]} {[%emt 00:00:01]} 49. Rd7 {[%clk
00:00:15]} {[%emt 00:00:01]} Bf8 {[%clk 00:00:55]} {[%emt 00:00:03]} 50. Rd8
{[%clk 00:00:17]} Kf7 {[%clk 00:00:56]} 51. Rb8 {[%clk 00:00:17]} {[%emt
00:00:01]} Bc2 {[%clk 00:00:55]} {[%emt 00:00:04]} 52. Kg4 {[%clk 00:00:15]}
{[%emt 00:00:04]} Ba3 {[%clk 00:00:55]} 53. Ng5+ {[%clk 00:00:13]} {[%emt
00:00:04]} Kg7 {[%clk 00:00:54]} {[%emt 00:00:04]} 54. Rb7+ {[%clk 00:00:14]}
Kf8 {[%clk 00:00:52]} {[%emt 00:00:02]} 55. Ne6+ {[%clk 00:00:12]} {[%emt
00:00:05]} Kg8 {[%clk 00:00:50]} {[%emt 00:00:04]} 56. R2xb3 {[%clk 00:00:04]}
{[%emt 00:00:11]} Bxb3 {[%clk 00:00:51]} 57. Ng5 {[%clk 00:00:05]} Bd1+ {[%clk
00:00:51]} {[%emt 00:00:01]} 58. Bf3 {[%clk 00:00:05]} {[%emt 00:00:02]} Bxf3+
{[%clk 00:00:52]} 59. Nxf3 {[%clk 00:00:06]} {[%emt 00:00:01]} Bf8 {[%emt
00:00:05]} 60. e6 {[%clk 00:00:07]} Re3 {[%clk 00:00:50]} {[%emt 00:00:02]} 61.
Ng5 {[%clk 00:00:07]} {[%emt 00:00:01]} Re1 {[%clk 00:00:49]} {[%emt 00:00:04]}
62. f5 {[%clk 00:00:08]} {[%emt 00:00:02]} Rg1+ {[%clk 00:00:49]} 63. Kf4
{[%clk 00:00:09]} {[%emt 00:00:01]} Bd6+ {[%clk 00:00:50]} 64. Ke4 {[%clk
00:00:09]} {[%emt 00:00:01]} Rxg5 {[%clk 00:00:50]} {[%emt 00:00:03]} 65. e7
{[%clk 00:00:10]} {[%emt 00:00:01]} Bxe7 {[%clk 00:00:51]} {[%emt 00:00:01]} 66.
Rxe7 {[%clk 00:00:11]} {[%emt 00:00:01]} gxf5+ {[%clk 00:00:52]} {[%emt
00:00:01]} 67. Kf4 {[%clk 00:00:11]} {[%emt 00:00:02]} Rh5 {[%clk 00:00:53]}
{[%emt 00:00:01]} 68. Re5 {[%clk 00:00:09]} {[%emt 00:00:04]} Rxh3 {[%clk
00:00:54]} {[%emt 00:00:01]} 1/2-1/2

[Event "SM-blixten 2025"]
[Site "Uppsala, Sweden"]
[Date "2025.07.03"]
[Round "9.4"]
[White "Nilsson, Joakim"]
[Black "Crevatin, Leo"]
[Result "0-1"]
[TimeControl "3 min + 2 sec increment starting from move 1"]
[WhiteTitle "FM"]
[BlackTitle "FM"]
[WhiteElo "2208"]
[BlackElo "2248"]

1. Nf3 {[%clk 00:03:00]} {[%emt 00:00:03]} d5 {[%clk 00:03:03]} {[%emt
00:00:01]} 2. g3 {[%clk 00:03:02]} Nf6 {[%clk 00:03:03]} {[%emt 00:00:02]} 3.
Bg2 {[%clk 00:03:03]} {[%emt 00:00:01]} e6 {[%clk 00:03:04]} 4. O-O {[%clk
00:03:04]} {[%emt 00:00:02]} Be7 {[%clk 00:03:06]} {[%emt 00:00:01]} 5. b3
{[%clk 00:03:05]} O-O {[%clk 00:03:04]} {[%emt 00:00:04]} 6. Bb2 {[%clk
00:03:06]} {[%emt 00:00:01]} c5 {[%clk 00:03:05]} {[%emt 00:00:01]} 7. e3
{[%clk 00:03:06]} {[%emt 00:00:02]} Nc6 {[%clk 00:03:06]} {[%emt 00:00:02]} 8.
d3 {[%clk 00:03:02]} {[%emt 00:00:05]} b6 {[%clk 00:03:06]} {[%emt 00:00:03]} 9.
Qe2 {[%clk 00:03:02]} {[%emt 00:00:01]} Bb7 {[%clk 00:03:07]} {[%emt 00:00:01]}
10. c4 {[%clk 00:03:03]} {[%emt 00:00:02]} Re8 {[%clk 00:02:59]} {[%emt
00:00:10]} 11. Nc3 {[%clk 00:03:03]} {[%emt 00:00:01]} Bf8 {[%clk 00:02:59]}
{[%emt 00:00:02]} 12. Rad1 {[%clk 00:03:04]} {[%emt 00:00:01]} h6 {[%clk
00:02:53]} {[%emt 00:00:08]} 13. e4 {[%clk 00:02:49]} {[%emt 00:00:18]} d4
{[%clk 00:02:46]} {[%emt 00:00:08]} 14. Nb1 {[%clk 00:02:49]} e5 {[%clk
00:02:44]} {[%emt 00:00:04]} 15. Bc1 {[%clk 00:02:47]} {[%emt 00:00:04]} Bc8
{[%clk 00:02:39]} {[%emt 00:00:08]} 16. Nh4 {[%clk 00:02:47]} {[%emt 00:00:02]}
a5 {[%clk 00:02:08]} {[%emt 00:00:34]} 17. Nf5 {[%clk 00:02:37]} {[%emt
00:00:11]} a4 {[%clk 00:02:02]} {[%emt 00:00:09]} 18. Na3 {[%clk 00:02:36]}
{[%emt 00:00:02]} axb3 {[%clk 00:02:01]} {[%emt 00:00:03]} 19. axb3 {[%clk
00:02:37]} Ne7 {[%clk 00:01:41]} {[%emt 00:00:22]} 20. Nb5 {[%clk 00:02:24]}
{[%emt 00:00:15]} Nxf5 {[%clk 00:01:35]} {[%emt 00:00:07]} 21. exf5 {[%clk
00:02:25]} {[%emt 00:00:01]} Rb8 {[%clk 00:01:28]} {[%emt 00:00:09]} 22. g4
{[%clk 00:02:26]} {[%emt 00:00:02]} Nh7 {[%clk 00:01:10]} {[%emt 00:00:20]} 23.
Bd5 {[%clk 00:02:25]} {[%emt 00:00:03]} Nf6 {[%clk 00:01:08]} {[%emt 00:00:04]}
24. Bc6 {[%clk 00:02:21]} {[%emt 00:00:06]} Bd7 {[%clk 00:01:08]} {[%emt
00:00:02]} 25. Bf3 {[%clk 00:02:07]} {[%emt 00:00:16]} Nh7 {[%clk 00:00:49]}
{[%emt 00:00:21]} 26. Na3 {[%clk 00:01:46]} {[%emt 00:00:23]} Ng5 {[%clk
00:00:43]} {[%emt 00:00:08]} 27. Bd5 {[%clk 00:01:47]} {[%emt 00:00:01]} Nh3+
{[%clk 00:00:41]} {[%emt 00:00:04]} 28. Kh1 {[%clk 00:01:41]} {[%emt 00:00:08]}
Nf4 {[%clk 00:00:32]} {[%emt 00:00:11]} 29. Bxf4 {[%clk 00:01:39]} {[%emt
00:00:04]} exf4 {[%clk 00:00:33]} {[%emt 00:00:01]} 30. Qf3 {[%clk 00:01:40]}
Bd6 {[%clk 00:00:28]} {[%emt 00:00:07]} 31. Rde1 {[%clk 00:01:39]} {[%emt
00:00:02]} Qg5 {[%clk 00:00:22]} {[%emt 00:00:09]} 32. h3 {[%clk 00:01:31]}
{[%emt 00:00:10]} Qh4 {[%clk 00:00:19]} {[%emt 00:00:05]} 33. Kg2 {[%clk
00:01:25]} {[%emt 00:00:07]} h5 {[%clk 00:00:20]} {[%emt 00:00:01]} 34. Nc2
{[%clk 00:01:10]} {[%emt 00:00:18]} Qg5 {[%clk 00:00:19]} {[%emt 00:00:03]} 35.
Kh1 {[%clk 00:01:06]} {[%emt 00:00:06]} Qh4 {[%clk 00:00:14]} {[%emt 00:00:07]}
36. Rg1 {[%clk 00:01:03]} {[%emt 00:00:05]} Qf6 {[%clk 00:00:14]} {[%emt
00:00:02]} 37. Be4 {[%clk 00:00:54]} {[%emt 00:00:12]} Qh4 {[%clk 00:00:12]}
{[%emt 00:00:04]} 38. Ra1 {[%emt 00:00:12]} b5 {[%emt 00:00:01]} 39. Ne1 {[%clk
00:00:43]} {[%emt 00:00:01]} bxc4 {[%clk 00:00:14]} {[%emt 00:00:02]} 40. g5
{[%clk 00:00:35]} {[%emt 00:00:10]} cxb3 {[%clk 00:00:14]} {[%emt 00:00:02]} 41.
Ng2 {[%clk 00:00:36]} {[%emt 00:00:01]} Qxg5 {[%clk 00:00:15]} {[%emt
00:00:02]} 42. Rab1 {[%clk 00:00:31]} {[%emt 00:00:06]} Bxf5 {[%clk 00:00:15]}
{[%emt 00:00:02]} 43. Bxf5 Qxf5 {[%clk 00:00:16]} 44. Nh4 {[%clk 00:00:31]}
{[%emt 00:00:01]} Qf6 {[%clk 00:00:17]} 45. Qxh5 {[%clk 00:00:31]} {[%emt
00:00:02]} Re5 {[%clk 00:00:17]} {[%emt 00:00:03]} 46. Qg4 {[%clk 00:00:31]}
{[%emt 00:00:03]} g6 {[%clk 00:00:17]} {[%emt 00:00:01]} 47. Nf3 {[%clk
00:00:32]} {[%emt 00:00:01]} Ree8 {[%clk 00:00:17]} {[%emt 00:00:02]} 48. Ng5
{[%clk 00:00:33]} {[%emt 00:00:02]} Re5 {[%clk 00:00:17]} {[%emt 00:00:01]} 49.
Ne4 {[%clk 00:00:34]} {[%emt 00:00:01]} Qe7 {[%clk 00:00:19]} 50. Qxf4 {[%clk
00:00:32]} {[%emt 00:00:03]} Rxe4 {[%emt 00:00:06]} 51. Qxe4 {[%clk 00:00:31]}
{[%emt 00:00:03]} Qxe4+ 52. dxe4 c4 53. Rgd1 {[%clk 00:00:31]} {[%emt
00:00:02]} Be5 {[%clk 00:00:20]} {[%emt 00:00:02]} 54. f4 {[%clk 00:00:31]}
{[%emt 00:00:02]} c3 {[%clk 00:00:20]} {[%emt 00:00:01]} 55. fxe5 {[%clk
00:00:31]} {[%emt 00:00:02]} c2 {[%clk 00:00:22]} 56. Rdc1 {[%clk 00:00:21]}
{[%emt 00:00:11]} d3 {[%clk 00:00:21]} {[%emt 00:00:03]} 57. Kg2 {[%clk
00:00:20]} {[%emt 00:00:03]} 0-1

[Event "SM-blixten 2025"]
[Site "Uppsala, Sweden"]
[Date "2025.07.03"]
[Round "10.10"]
[White "Malm Lindberg, Henrik"]
[Black "Tadjerbashi, Amir"]
[Result "0-1"]
[TimeControl "3 min + 2 sec increment starting from move 1"]
[WhiteElo "2113"]
[BlackElo "2235"]

1. e4 {[%clk 00:03:03]} e5 {[%clk 00:03:03]} {[%emt 00:00:01]} 2. Nf3 {[%clk
00:03:03]} {[%emt 00:00:02]} d6 {[%clk 00:03:03]} {[%emt 00:00:02]} 3. d4
{[%clk 00:03:03]} {[%emt 00:00:02]} Qe7 {[%clk 00:03:04]} {[%emt 00:00:01]} 4.
Nc3 {[%clk 00:02:46]} {[%emt 00:00:19]} c6 {[%clk 00:03:05]} {[%emt 00:00:01]}
5. h3 {[%clk 00:02:25]} {[%emt 00:00:23]} h6 {[%clk 00:03:05]} {[%emt
00:00:02]} 6. Bc4 {[%clk 00:02:22]} {[%emt 00:00:05]} Nf6 {[%clk 00:03:03]}
{[%emt 00:00:04]} 7. O-O {[%clk 00:02:20]} {[%emt 00:00:04]} Qc7 {[%clk
00:03:03]} {[%emt 00:00:02]} 8. a4 {[%clk 00:02:18]} {[%emt 00:00:04]} Be7
{[%clk 00:03:03]} {[%emt 00:00:02]} 9. Re1 {[%clk 00:02:18]} {[%emt 00:00:02]}
O-O {[%clk 00:03:03]} {[%emt 00:00:03]} 10. Ba2 {[%clk 00:02:12]} {[%emt
00:00:07]} Re8 {[%clk 00:02:59]} {[%emt 00:00:06]} 11. Nh4 {[%clk 00:02:08]}
{[%emt 00:00:06]} Bf8 {[%clk 00:01:46]} {[%emt 00:01:15]} 12. Ng6 {[%clk
00:02:04]} {[%emt 00:00:06]} Be6 {[%clk 00:01:30]} {[%emt 00:00:19]} 13. Nxf8
{[%clk 00:02:00]} {[%emt 00:00:05]} Kxf8 {[%clk 00:01:30]} {[%emt 00:00:02]} 14.
Bxe6 {[%clk 00:01:42]} {[%emt 00:00:20]} Rxe6 {[%clk 00:01:25]} {[%emt
00:00:07]} 15. d5 {[%clk 00:01:25]} {[%emt 00:00:18]} Re8 {[%clk 00:01:16]}
{[%emt 00:00:12]} 16. b3 {[%clk 00:01:15]} {[%emt 00:00:13]} c5 {[%clk
00:01:13]} {[%emt 00:00:04]} 17. a5 {[%clk 00:01:12]} {[%emt 00:00:05]} a6
{[%clk 00:01:13]} {[%emt 00:00:02]} 18. f4 {[%clk 00:01:01]} {[%emt 00:00:13]}
exf4 {[%clk 00:01:10]} {[%emt 00:00:06]} 19. Bxf4 {[%clk 00:01:01]} {[%emt
00:00:01]} Nbd7 {[%clk 00:01:10]} {[%emt 00:00:01]} 20. Bg3 {[%clk 00:00:32]}
{[%emt 00:00:32]} Ne5 {[%clk 00:01:11]} {[%emt 00:00:01]} 21. Qe2 {[%clk
00:00:32]} {[%emt 00:00:02]} Kg8 {[%clk 00:01:11]} {[%emt 00:00:02]} 22. Rf1
{[%clk 00:00:33]} Qe7 {[%clk 00:01:05]} {[%emt 00:00:07]} 23. Rf5 {[%clk
00:00:32]} {[%emt 00:00:03]} g6 {[%clk 00:00:47]} {[%emt 00:00:21]} 24. Rf2
{[%clk 00:00:26]} {[%emt 00:00:08]} Nh5 {[%clk 00:00:48]} {[%emt 00:00:02]} 25.
Bh2 {[%clk 00:00:26]} Rf8 {[%clk 00:00:34]} {[%emt 00:00:16]} 26. Raf1 {[%clk
00:00:21]} {[%emt 00:00:07]} Rae8 {[%clk 00:00:34]} {[%emt 00:00:02]} 27. g4
{[%clk 00:00:16]} {[%emt 00:00:07]} Ng7 {[%clk 00:00:35]} 28. Kg2 {[%clk
00:00:16]} {[%emt 00:00:03]} f5 {[%clk 00:00:30]} {[%emt 00:00:08]} 29. exf5
{[%clk 00:00:08]} {[%emt 00:00:09]} gxf5 {[%clk 00:00:29]} {[%emt 00:00:03]} 30.
gxf5 {[%clk 00:00:08]} {[%emt 00:00:02]} Qg5+ {[%clk 00:00:27]} {[%emt
00:00:04]} 31. Kh1 {[%clk 00:00:08]} {[%emt 00:00:02]} Kh8 {[%clk 00:00:18]}
{[%emt 00:00:12]} 32. Rg1 {[%clk 00:00:08]} {[%emt 00:00:02]} Qf6 {[%clk
00:00:15]} {[%emt 00:00:05]} 33. Rfg2 {[%clk 00:00:06]} {[%emt 00:00:03]} Re7
{[%clk 00:00:15]} {[%emt 00:00:02]} 34. Qd2 {[%clk 00:00:05]} {[%emt 00:00:04]}
Rg8 {[%clk 00:00:13]} {[%emt 00:00:03]} 35. Bf4 {[%clk 00:00:03]} {[%emt
00:00:04]} Nf7 {[%clk 00:00:14]} 36. Rg6 {[%emt 00:00:04]} Qxf5 {[%emt
00:00:02]} 0-1

[Event "SM-blixten 2025"]
[Site "Uppsala, Sweden"]
[Date "2025.07.03"]
[Round "1.5"]
[White "Sjostrand, Joel"]
[Black "Olund, Joar"]
[Result "0-1"]
[TimeControl "3 min + 2 sec increment starting from move 1"]
[BlackTitle "FM"]
[WhiteElo "1977"]
[BlackElo "2369"]

1. c4 {[%clk 00:03:03]} e5 {[%clk 00:03:03]} {[%emt 00:00:01]} 2. g3 {[%clk
00:03:04]} Nf6 {[%clk 00:03:04]} 3. Bg2 {[%clk 00:03:06]} c6 {[%clk 00:03:06]}
4. d4 {[%clk 00:03:06]} {[%emt 00:00:02]} Bb4+ {[%clk 00:03:06]} {[%emt
00:00:01]} 5. Nc3 {[%clk 00:03:01]} {[%emt 00:00:07]} d6 {[%clk 00:03:07]}
{[%emt 00:00:02]} 6. dxe5 {[%clk 00:02:53]} {[%emt 00:00:10]} dxe5 {[%clk
00:03:08]} {[%emt 00:00:01]} 7. Qxd8+ {[%clk 00:02:54]} {[%emt 00:00:01]} Kxd8
{[%clk 00:03:09]} {[%emt 00:00:01]} 8. Bg5 {[%clk 00:02:38]} {[%emt 00:00:17]}
Nbd7 {[%clk 00:03:07]} {[%emt 00:00:04]} 9. Nf3 {[%clk 00:02:27]} {[%emt
00:00:13]} Re8 {[%clk 00:03:08]} 10. O-O {[%clk 00:02:24]} {[%emt 00:00:05]}
Kc7 {[%clk 00:03:09]} {[%emt 00:00:01]} 11. e3 {[%clk 00:02:18]} {[%emt
00:00:08]} h6 {[%clk 00:03:10]} {[%emt 00:00:02]} 12. Bxf6 {[%clk 00:02:18]}
{[%emt 00:00:02]} Nxf6 {[%clk 00:03:10]} {[%emt 00:00:01]} 13. Rfd1 {[%clk
00:02:17]} {[%emt 00:00:04]} Bxc3 {[%clk 00:02:52]} {[%emt 00:00:20]} 14. bxc3
{[%clk 00:02:17]} {[%emt 00:00:01]} Bf5 {[%clk 00:02:48]} {[%emt 00:00:05]} 15.
Kf1 {[%clk 00:01:43]} {[%emt 00:00:38]} Nd7 {[%clk 00:02:38]} {[%emt 00:00:12]}
16. Nd2 {[%clk 00:01:36]} {[%emt 00:00:09]} Nc5 {[%clk 00:02:27]} {[%emt
00:00:13]} 17. e4 {[%clk 00:01:26]} {[%emt 00:00:12]} Be6 {[%clk 00:02:15]}
{[%emt 00:00:12]} 18. Nb3 {[%clk 00:01:19]} {[%emt 00:00:10]} Bxc4+ {[%clk
00:02:15]} {[%emt 00:00:03]} 19. Ke1 {[%clk 00:01:16]} {[%emt 00:00:04]} Nd3+
{[%clk 00:01:52]} {[%emt 00:00:24]} 20. Rxd3 {[%clk 00:01:01]} {[%emt
00:00:18]} Bxd3 {[%clk 00:01:53]} {[%emt 00:00:01]} 21. Nc5 {[%clk 00:01:02]}
{[%emt 00:00:01]} Bc4 {[%clk 00:01:52]} {[%emt 00:00:02]} 22. f4 {[%clk
00:00:40]} {[%emt 00:00:23]} Rad8 {[%clk 00:01:45]} {[%emt 00:00:10]} 0-1

[Event "SM-blixten 2025"]
[Site "Uppsala, Sweden"]
[Date "2025.07.03"]
[Round "3.1"]
[White "Tagesson, Bjorn"]
[Black "Galperin, Platon"]
[Result "0-1"]
[TimeControl "3 min + 2 sec increment starting from move 1"]
[BlackTitle "GM"]
[WhiteElo "2142"]
[BlackElo "2506"]

1. e4 {[%clk 00:03:01]} {[%emt 00:00:02]} g6 {[%clk 00:03:03]} {[%emt
00:00:01]} 2. d4 {[%clk 00:03:02]} {[%emt 00:00:01]} d6 {[%clk 00:03:04]}
{[%emt 00:00:02]} 3. c4 {[%clk 00:02:41]} {[%emt 00:00:22]} Nf6 {[%clk
00:03:04]} {[%emt 00:00:02]} 4. Nc3 {[%clk 00:02:42]} {[%emt 00:00:01]} Bg7
{[%clk 00:03:05]} {[%emt 00:00:01]} 5. Nf3 {[%clk 00:02:32]} {[%emt 00:00:12]}
O-O {[%clk 00:03:04]} {[%emt 00:00:03]} 6. Be2 {[%clk 00:02:33]} {[%emt
00:00:01]} Na6 {[%clk 00:03:04]} {[%emt 00:00:03]} 7. O-O {[%clk 00:02:32]}
{[%emt 00:00:03]} e5 {[%clk 00:03:05]} {[%emt 00:00:02]} 8. Be3 {[%clk
00:01:53]} {[%emt 00:00:39]} Qe7 {[%clk 00:03:05]} {[%emt 00:00:03]} 9. d5
{[%clk 00:01:45]} {[%emt 00:00:10]} Nc5 {[%clk 00:03:06]} {[%emt 00:00:02]} 10.
Nd2 {[%clk 00:01:45]} {[%emt 00:00:01]} a5 {[%clk 00:03:05]} {[%emt 00:00:04]}
11. b3 {[%clk 00:01:45]} {[%emt 00:00:01]} Nfd7 {[%clk 00:02:47]} {[%emt
00:00:19]} 12. a3 {[%clk 00:01:44]} {[%emt 00:00:04]} f5 {[%clk 00:02:48]}
{[%emt 00:00:01]} 13. f3 {[%clk 00:01:45]} {[%emt 00:00:01]} Bf6 {[%clk
00:02:28]} {[%emt 00:00:22]} 14. b4 {[%clk 00:01:37]} {[%emt 00:00:10]} axb4
{[%clk 00:02:29]} {[%emt 00:00:01]} 15. axb4 {[%clk 00:01:38]} {[%emt
00:00:01]} Rxa1 {[%clk 00:02:30]} {[%emt 00:00:02]} 16. Qxa1 {[%clk 00:01:38]}
{[%emt 00:00:01]} Na6 {[%clk 00:02:31]} 17. Qb2 {[%clk 00:00:17]} {[%emt
00:01:23]} Bg5 {[%clk 00:02:32]} {[%emt 00:00:02]} 18. Bf2 {[%clk 00:00:14]}
{[%emt 00:00:05]} Nxb4 {[%clk 00:02:32]} {[%emt 00:00:02]} 19. Qxb4 {[%clk
00:00:13]} {[%emt 00:00:03]} Bxd2 {[%clk 00:02:31]} {[%emt 00:00:02]} 20. Qb2
{[%clk 00:00:13]} {[%emt 00:00:01]} Bg5 {[%clk 00:02:31]} {[%emt 00:00:03]} 21.
Nb5 {[%clk 00:00:14]} {[%emt 00:00:01]} Nf6 {[%clk 00:02:24]} {[%emt 00:00:09]}
22. Ra1 {[%clk 00:00:12]} {[%emt 00:00:03]} fxe4 {[%clk 00:02:24]} {[%emt
00:00:03]} 23. Ra8 {[%clk 00:00:10]} {[%emt 00:00:04]} exf3 {[%clk 00:02:23]}
{[%emt 00:00:04]} 24. Bxf3 {[%clk 00:00:11]} {[%emt 00:00:01]} e4 {[%clk
00:02:22]} {[%emt 00:00:02]} 25. Be2 {[%clk 00:00:12]} {[%emt 00:00:01]} e3
{[%clk 00:02:22]} {[%emt 00:00:02]} 26. Bg3 {[%clk 00:00:13]} {[%emt 00:00:01]}
Ne4 {[%clk 00:02:22]} {[%emt 00:00:02]} 27. Be1 {[%clk 00:00:10]} {[%emt
00:00:05]} c6 {[%clk 00:02:13]} {[%emt 00:00:11]} 28. dxc6 {[%clk 00:00:09]}
{[%emt 00:00:03]} bxc6 {[%clk 00:02:14]} {[%emt 00:00:02]} 29. Na3 {[%clk
00:00:09]} {[%emt 00:00:01]} Bf6 {[%clk 00:02:11]} {[%emt 00:00:06]} 30. Qb6
{[%clk 00:00:08]} {[%emt 00:00:03]} Bc3 {[%clk 00:02:06]} {[%emt 00:00:06]} 0-1